[Event "Polish University-ch Teams 2024"]
[Site "Lublin"]
[Date "2024.02.24"]
[Round "4.24"]
[White "Rykala, Monika"]
[Black "Czarniecka, Aleksandra"]
[Result "0-1"]
[ECO "D02"]
[WhiteElo "1893"]
[BlackElo "1961"]
[Annotator "NA RC"]
[PlyCount "138"]
[EventDate "2024.02.22"]
[EventType "team-tourn"]
[EventCountry "POL"]
[SourceTitle "playchess.com"]
[Source "ChessBase"]
[SourceQuality "1"]
[TimeControl "900+5"]

1. d4 {[%emt 0:00:01]} d5 {[%emt 0:00:01]} 2. Nf3 {[%emt 0:00:02]} Nf6 {[%emt 0:00:00]} 3. Bf4 {[%emt 0:00:01]} e6 {[%emt 0:00:01]} 4. e3 {[%emt 0:00:03]} c5 {[%emt 0:00:02]} 5. c3 {[%emt 0:00:01]} Nc6 {[%emt 0:00:02]} 6. Nbd2 {[%emt 0:00:11]} Bd6 {[%emt 0:00:04]} 7. Bxd6 {[%emt 0:00:29]} Qxd6 {[%emt 0:00:01]} 8. Be2 {[%emt 0:00:07]} O-O {[%emt 0:00:10]} 9. O-O {[%emt 0:00:41]} e5 {[%emt 0:00:02]} 10. dxe5 {[%emt 0:00:05]} Nxe5 {[%emt 0:00:02]} 11. Nxe5 {[%emt 0:00:28]} Qxe5 {[%emt 0:00:01]} 12. Nf3 {[%emt 0:00:02]} Qe7 {[%emt 0:00:46]} 13. h3 {[%emt 0:01:08]} Bf5 {[%emt 0:00:33]} 14. Qb3 {[%emt 0:00:47]} Rfd8 {[%emt 0:00:11]} 15. Rad1 {[%emt 0:00:28]} h6 {[%emt 0:00:31]} 16. Rfe1 {[%emt 0:00:13]} Be4 {[%emt 0:00:12]} 17. Nd2 {[%emt 0:00:53]} Bg6 {[%emt 0:01:09]} 18. Bf3 {[%emt 0:01:12]} Rd6 {[%emt 0:01:46]} 19. c4 {[%emt 0:02:09]} Rb6 {[%emt 0:00:02]} 20. Qc3 {[%emt 0:00:52]} Ne4 {[%emt 0:01:04]} 21. Nxe4 {[%emt 0:03:32]} dxe4 {[%emt 0:00:06]} 22. Bg4 {[%emt 0:00:01]} f5 {[%emt 0:00:06]} 23. Be2 {[%emt 0:00:01]} Bf7 {[%emt 0:00:10]} 24. Rd2 {[%emt 0:00:31]} Rd8 {[%emt 0:01:14]} 25. Red1 {[%emt 0:00:02]} Rbd6 {[%emt 0:00:34]} 26. b3 {[%emt 0:00:18]} b6 {[%emt 0:00:50]} 27. Qc2 {[%emt 0:00:59]} Qe5 {[%emt 0:00:12]} 28. Rxd6 {[%emt 0:00:03]} Rxd6 {[%emt 0:00:01]} 29. Rxd6 {[%emt 0:00:01]} Qxd6 {[%emt 0:00:01]} 30. Qd1 {[%emt 0:00:05]} Qxd1+ {[%emt 0:01:19]} 31. Bxd1 {[%emt 0:00:01]} Kf8 {[%emt 0:00:08]} 32. Kf1 {[%emt 0:00:08]} g5 {[%emt 0:00:18]} 33. g3 {[%emt 0:00:28]} Ke7 {[%emt 0:00:04]} 34. Kg2 {[%emt 0:00:13]} Kf6 {[%emt 0:00:07]} 35. h4 {[%emt 0:00:12]} gxh4 {[%emt 0:00:34]} 36. gxh4 {[%emt 0:00:10]} Ke5 {[%emt 0:00:32]} 37. Kg3 {[%emt 0:00:02]} Be8 {[%emt 0:00:26]} 38. Be2 {[%emt 0:00:04]} a6 {[%emt 0:00:12]} 39. a4 {[%emt 0:00:16]} Bd7 {[%emt 0:00:17]} 40. Bf1 {[%emt 0:00:16]} Bc6 {[%emt 0:00:01]} 41. Be2 {[%emt 0:01:14]} Be8 {[%emt 0:00:00]} 42. h5 {[%emt 0:00:00]} Bd7 {[%emt 0:00:16]} 43. Bf1 {[%emt 0:00:00]} Bc6 {[%emt 0:00:01]} 44. Be2 {[%emt 0:00:00]} Be8 {[%emt 0:00:00]} 45. f3 {[%emt 0:00:00]} exf3 {[%emt 0:00:34]} 46. Bxf3 {[%emt 0:00:00]} Bf7 {[%emt 0:00:42]} 47. Bb7 {[%emt 0:00:01]} Bxh5 {[%emt 0:00:10]} 48. Bxa6 {[%emt 0:00:01]} Bd1 {[%emt 0:00:01]} 49. Bb5 {[%emt 0:00:29]} Bxb3 {[%emt 0:00:02]} 50. Kf3 {[%emt 0:00:01]} h5 {[%emt 0:00:06]} 51. Be8 {[%emt 0:00:04]} Bd1+ {[%emt 0:00:22]} 52. Kg3 {[%emt 0:00:07]} Ke4 {[%emt 0:00:09]} 53. Bg6 {[%emt 0:00:01]} Bg4 {[%emt 0:00:02]} 54. Kf2 {[%emt 0:00:01]} Kd3 {[%emt 0:00:03]} 55. Bf7 {[%emt 0:00:02]} h4 {[%emt 0:00:07]} 56. Bd5 {[%emt 0:00:02]} Bd1 {[%emt 0:00:15]} 57. Be6 {[%emt 0:00:08]} Ke4 {[%emt 0:00:28]} 58. Bd5+ {[%emt 0:00:02]} Ke5 {[%emt 0:00:01]} 59. Bc6 {[%emt 0:00:09]} Bb3 {[%emt 0:00:02]} 60. Bb5 {[%emt 0:00:03]} Ke4 {[%emt 0:00:22]} 61. Ke2 {[%emt 0:00:01]} h3 {[%emt 0:00:03]} 62. Bc6+ {[%emt 0:00:05]} Ke5 {[%emt 0:00:05]} 63. Kf3 {[%emt 0:00:10]} Bxc4 {[%emt 0:00:04]} 64. Kg3 {[%emt 0:00:02]} Bf1 {[%emt 0:00:03]} 65. Kf2 {[%emt 0:00:02]} Bg2 {[%emt 0:00:02]} 66. Bb5 {[%emt 0:00:03]} Kd5 {[%emt 0:00:06]} 67. Kg3 {[%emt 0:00:06]} c4 {[%emt 0:00:03]} 68. Ba6 {[%emt 0:00:12]} c3 {[%emt 0:00:04]} 69. Bd3 {[%emt 0:00:03]} Be4 {[%emt 0:00:05]} 0-1

[Event "Polish University-ch Teams 2024"]
[Site "Lublin"]
[Date "2024.02.24"]
[Round "5.1"]
[White "Janik, Igor"]
[Black "Baum, Jonasz"]
[Result "1-0"]
[ECO "A20"]
[WhiteElo "2499"]
[BlackElo "2400"]
[Annotator "TA"]
[PlyCount "111"]
[EventDate "2024.02.22"]
[EventType "team-tourn"]
[EventCountry "POL"]
[SourceTitle "playchess.com"]
[Source "ChessBase"]
[SourceQuality "1"]
[TimeControl "900+5"]

{[%evp 22,111,28,16,35,31,29,0,0,0,0,0,0,22,15,16,4,7,25,-12,0,-34,-35,-47,-10,-20,-10,-25,-23,-17,0,0,38,25,38,37,124,-11,-8,-8,-8,-8,-8,-8,-8,-8,0,0,33,36,37,37,28,31,42,28,47,49,95,40,99,87,139,97,147,141,157,151,195,187,213,207,295,312,345,337,335,346,316,343,329,187,272,272,342,337,336,330,313,188,4133,1704]} 1. a3 {[%emt 0:00:00]} e5 {[%emt 0:00:19]} 2. c4 {[%emt 0:00:01]} Nf6 {[%emt 0:00:06]} 3. d3 {[%emt 0:00:02]} Nc6 {[%emt 0:00:03]} 4. Nf3 {[%emt 0:15:22]} d5 {[%emt 0:00:02]} 5. cxd5 {[%emt 0:00:00]} Nxd5 {[%emt 0:00:01]} 6. e3 {[%emt 0:00:00] A20: English Opening: 1...e5.} Be7 {[%emt 0:00:04]} 7. b4 {[%emt 0:00:00]} Bf6 {[%emt 0:00:50]} 8. Ra2 {[%emt 0:00:00]} Be6 $146 {[%emt 0:00:22]} ({Predecessor:} 8... O-O 9. Rd2 Qe7 10. Bb2 Bg4 11. Be2 Rad8 12. Nc3 Nxc3 13. Bxc3 e4 14. Bxf6 Qxf6 {½-½ Damia,A (2313)-Calavalle,G (2275) Lignano Sabbiadoro op 4th 2018 (3)}) 9. Rd2 {[%emt 0:00:00]} Qe7 {[%emt 0:01:04]} 10. Bb2 {[%emt 0:00:00]} a6 {[%emt 0:01:05]} 11. Be2 {[%emt 0:00:00]} g5 {[%emt 0:00:30]} 12. Rc2 {[%emt 0:00:00]} Nb6 {[%emt 0:01:46]} 13. Nfd2 {[%emt 0:00:00]} Bg7 {[%emt 0:00:20]} 14. Nc3 {[%emt 0:00:00]} f5 $1 {[%emt 0:00:10]} 15. Bh5+ {[%emt 0:00:00]} Bf7 {[%emt 0:00:13]} 16. Nc4 {[%emt 0:00:00]} O-O {[%emt 0:01:18]} 17. Nxb6 {[%emt 0:00:00]} cxb6 {[%emt 0:00:01]} 18. Bxf7+ {[%emt 0:00:00]} Qxf7 {[%emt 0:00:02]} 19. O-O {[%emt 0:00:00]} Rad8 {[%emt 0:00:36]} 20. Rd2 {[%emt 0:00:00]} Rd6 {[%emt 0:00:31]} 21. Qa1 {[%emt 0:00:00]} Rfd8 {[%emt 0:00:13]} 22. Rfd1 {[%emt 0:00:00]} Qh5 {[%emt 0:00:03]} 23. Qa2+ {[%emt 0:00:00]} Kh8 {[%emt 0:00:12]} 24. Ne2 {[%emt 0:00:00]} f4 {[%emt 0:01:03]} 25. Qc4 {[%emt 0:00:00]} Rh6 {[%emt 0:00:31]} (25... b5 {simplifies} 26. Qe4 Qf7 27. d4 exd4 28. exf4 gxf4 29. Qxf4 Qxf4 30. Nxf4 Bh6) 26. h3 {[%emt 0:00:00]} g4 {[%emt 0:00:05]} 27. exf4 {[%emt 0:00:00]} gxh3 {[%emt 0:00:02]} 28. Ng3 {[%emt 0:00:00]} Qh4 {[%emt 0:01:42] [#]} (28... Qg6 $14) 29. fxe5 {[%emt 0:00:00]} ({White must play} 29. Nf5 $1 $16 {[%cal Rf5h4]} Qg4 (29... h2+ $2 30. Kh1 $18) 30. Qe4) 29... Nd4 $1 $11 {[%emt 0:00:01]} 30. Bxd4 {[%emt 0:00:00]} hxg2 {[%emt 0:00:12]} 31. Kxg2 {[%emt 0:00:00]} Rxd4 {[%emt 0:00:02]} 32. Qc8+ {[%emt 0:00:00]} Rd8 {[%emt 0:00:00]} 33. Qxb7 {[%emt 0:00:00]} ({Not} 33. Qf5 $2 Rf8 $19) 33... Qh2+ {[%emt 0:01:28]} ({Much worse is} 33... Bxe5 $6 34. Rh1 (34. Qxa6 {gets mated.} Qh3+ 35. Kf3 Bxg3 36. Qb7 Rf6+ 37. Ke3 Qh6+ 38. Ke2 Rxf2+ 39. Ke1 Qe3+) 34... Qg5 35. Rxh6 Qxh6 36. Re2 $16) 34. Kf1 {[%emt 0:00:00]} Rf8 {[%emt 0:00:05]} 35. Qg2 {[%emt 0:00:00]} Bxe5 {[%emt 0:00:48]} 36. Qxh2 {[%emt 0:00:00]} Rxh2 {[%emt 0:00:01]} 37. Ne4 {[%emt 0:00:00]} Bd4 {[%emt 0:00:02]} 38. Rc2 {[%emt 0:00:00]} h5 {[%emt 0:00:56]} 39. Kg1 {[%emt 0:00:00]} Rh4 {[%emt 0:00:03]} (39... Be5 $14) 40. Rc4 {[%emt 0:00:00]} (40. Rc6 $16) 40... Rg4+ {[%emt 0:00:16]} (40... Be5 $14) 41. Kf1 $16 {[%emt 0:00:00]} Bb2 {[%emt 0:00:23]} (41... Rd8 $142 42. Ke2 Kg7) 42. Ke2 {[%emt 0:00:00]} h4 {[%emt 0:00:07]} ({Black should play} 42... Bxa3 43. Rb1 a5) 43. Rc6 $16 {[%emt 0:00:00]} Bxa3 {[%emt 0:00:41]} 44. Rxb6 {[%emt 0:00:00]} Bb2 {[%emt 0:00:10]} 45. Rxa6 {[%emt 0:00:00]} Kg7 {[%emt 0:00:01]} 46. Rh1 {[%emt 0:00:00]} Rc8 {[%emt 0:00:14]} (46... Be5 {was worth a try.} 47. Ra7+ Rf7 48. Rxf7+ Kxf7) 47. Kf3 $18 {[%emt 0:00:00]} Rg6 {[%emt 0:00:09]} 48. Rxg6+ {[%emt 0:00:00]} Kxg6 {[%emt 0:00:01]} 49. Rxh4 {[%emt 0:00:00]} Rb8 {[%emt 0:00:01]} 50. Rg4+ {[%emt 0:00:00]} Kf7 {[%emt 0:00:02]} 51. Ke2 {[%emt 0:00:00]} (51. b5 $142) 51... Ke6 {[%emt 0:00:04]} (51... Ba3 {was called for.} 52. Nd6+ Kf8 53. Rf4+ Kg8 54. Rg4+ Kh7) 52. Nc5+ $18 {[%emt 0:00:00]} Kd5 {[%emt 0:00:03]} 53. Rc4 {[%emt 0:00:00]} Ba3 {[%emt 0:00:08]} 54. Na6 {[%emt 0:00:00]} Rb6 {[%emt 0:00:03]} 55. Nc7+ {[%emt 0:00:00]} Ke5 $2 {[%emt 0:00:02]} (55... Kd6 56. b5 Kd7) 56. Rc5+ {[%emt 0:00:00]} 1-0

[Event "Polish University-ch Teams 2024"]
[Site "Lublin"]
[Date "2024.02.24"]
[Round "5.2"]
[White "Szustakowski, Antoni"]
[Black "Kowalski, Igor"]
[Result "0-1"]
[ECO "D10"]
[WhiteElo "2354"]
[BlackElo "2372"]
[Annotator "TA"]
[PlyCount "44"]
[EventDate "2024.02.22"]
[EventType "team-tourn"]
[EventCountry "POL"]
[SourceTitle "playchess.com"]
[Source "ChessBase"]
[SourceQuality "1"]
[TimeControl "900+5"]

{[%evp 10,44,18,22,22,26,17,9,24,41,34,34,23,13,35,14,27,35,28,26,23,-7,-19,-23,-9,-6,22,-47,-24,-43,-24,-24,-28,-122,-131,-29996,-29997]} 1. d4 {[%emt 0:00:02]} d5 {[%emt 0:00:01]} 2. c4 {[%emt 0:00:04]} c6 {[%emt 0:00:01]} 3. Nc3 {[%emt 0:00:05]} Nf6 {[%emt 0:00:01]} 4. e3 {[%emt 0:00:07]} Bf5 {[%emt 0:00:35]} 5. cxd5 {[%emt 0:00:02]} cxd5 {[%emt 0:00:02]} 6. Qb3 {[%emt 0:00:01]} Nc6 {[%emt 0:00:04]} 7. Qxb7 {[%emt 0:00:21]} Bd7 {[%emt 0:00:01] And now ...Rb8 would win.} 8. Qb3 {[%emt 0:00:23][%cal Og1f3]} Rb8 {[%emt 0:00:08] The position is equal.} 9. Qd1 {[%emt 0:00:12]} e5 {[%emt 0:00:45]} 10. dxe5 {[%emt 0:00:03]} Nxe5 {[%emt 0:00:01]} 11. Be2 {[%emt 0:00:35][%cal Og1f3]} (11. Nxd5 Nxd5 12. Qxd5 Bb4+ 13. Bd2 Bxd2+ 14. Qxd2 Qf6 $17) 11... Bd6 {[%emt 0:00:10]} 12. Nf3 {[%emt 0:00:02]} (12. Nxd5 $2 Nxd5 13. h3 (13. Qxd5 $2 Bc6 $19) 13... Be6 $19) 12... O-O {[%emt 0:00:03]} 13. O-O {[%emt 0:00:02]} ({Much worse is} 13. Nxd5 Nxf3+ 14. Bxf3 Nxd5 15. Qxd5 Be6 $15) 13... Qe7 {[%emt 0:01:26]} 14. g3 {[%emt 0:01:13]} Rfd8 {[%emt 0:01:11]} 15. Nxe5 {[%emt 0:01:13]} Bxe5 {[%emt 0:00:09]} 16. Bf3 {[%emt 0:00:01]} (16. Nxd5 $2 {perishes.} Nxd5 17. Qxd5 Bh3 $19 (17... Bxb2 18. Bxb2 Rxb2 19. Qf3 $11)) 16... Bh3 {[%emt 0:00:33]} 17. Re1 {[%emt 0:00:02]} Qe6 {[%emt 0:00:10]} 18. Qc2 {[%emt 0:01:15]} ({White should try} 18. Ne2 $1 $11) 18... Bf5 {[%emt 0:00:20]} 19. Qa4 {[%emt 0:00:48]} Bxc3 {[%emt 0:03:09]} 20. bxc3 {[%emt 0:00:03]} Be4 {[%emt 0:00:01] Threatens to win with ...Qh3.} 21. Be2 {[%emt 0:01:55] [#]} (21. Bg2 $11 {remains equal.}) 21... Qh3 $1 $17 {[%emt 0:00:06][%csl Ge4][%cal Rh3g2][%mdl 1024] Black has strong compensation. Black is more active.} 22. f3 $2 {[%emt 0:00:22][%mdl 8192] [#]} (22. Bf1 $17 Qf5 23. Be2) 22... Ng4 $1 {[%emt 0:00:04][%mdl 512] Weighted Error Value: White=0.54/Black=0.08 (flawless) .  Loses game:     	White=1     	---        Mistake:       	White=2     	---        Inaccurate:     	White=1     	Black=1      OK:         	White=5     	Black=4      Best:        	---       	Black=1      Strong:       	---       	Black=1} 0-1

[Event "Polish University-ch Teams 2024"]
[Site "Lublin"]
[Date "2024.02.24"]
[Round "5.3"]
[White "Molenda, Marcin"]
[Black "Koziorowicz, Michal"]
[Result "1-0"]
[ECO "E01"]
[WhiteElo "2377"]
[BlackElo "2324"]
[Annotator "TA"]
[PlyCount "135"]
[EventDate "2024.02.22"]
[EventType "team-tourn"]
[EventCountry "POL"]
[SourceTitle "playchess.com"]
[Source "ChessBase"]
[SourceQuality "1"]
[TimeControl "900+5"]

{[%evp 16,135,21,0,22,17,29,8,11,0,10,0,0,0,0,0,8,0,7,0,0,0,95,90,102,94,94,56,54,70,62,56,56,14,25,6,22,0,0,0,0,0,0,0,0,0,0,0,0,0,0,0,0,0,5,8,39,45,54,42,153,120,140,46,166,166,166,166,166,166,166,166,167,166,166,166,378,0,166,166,230,230,223,188,203,166,223,191,422,372,29972,29973,29972,29963,29964,29951,29965,29967,29944,9813,29972,2042,29974,29975,29975,29976,29977,29976,29986,29987,29988,29979,29979,29980,29980,29979,29990,29991,29991,29992,29992,29993]} 1. d4 {[%emt 0:00:01]} e6 {[%emt 0:00:05]} 2. c4 {[%emt 0:00:02]} Nf6 {[%emt 0:00:03]} 3. g3 {[%emt 0:00:03]} c5 {[%emt 0:00:06]} 4. Nf3 {[%emt 0:00:04]} cxd4 {[%emt 0:00:07]} 5. Nxd4 {[%emt 0:00:01]} d5 {[%emt 0:00:01][%cal Bd7d5,Bd5d4][%mdl 32]} 6. Bg2 {[%emt 0:00:22]} e5 {[%emt 0:00:23]} 7. Nf3 {[%emt 0:01:15]} d4 {[%emt 0:00:02]} 8. O-O {[%emt 0:00:06]} Nc6 {[%emt 0:00:02]} 9. e3 {[%emt 0:00:15]} Bg4 {[%emt 0:03:12]} 10. h3 {[%emt 0:00:57]} Bxf3 {[%emt 0:00:03]} 11. Bxf3 {[%emt 0:00:36]} Bc5 {[%emt 0:00:32] The position is equal.} 12. exd4 {[%emt 0:00:13]} Bxd4 {[%emt 0:00:10]} 13. Nd2 {[%emt 0:00:29]} O-O {[%emt 0:04:03]} 14. Nb3 {[%emt 0:00:01]} Rc8 {[%emt 0:00:38]} 15. Bg2 {[%emt 0:00:16]} h6 {[%emt 0:00:22]} 16. Nxd4 {[%emt 0:00:33]} Nxd4 {[%emt 0:00:06]} 17. b3 {[%emt 0:00:13]} b5 {[%emt 0:01:09]} 18. cxb5 {[%emt 0:00:40]} Qa5 {[%emt 0:00:21]} (18... Nd5 $11) 19. a4 $1 $16 {[%emt 0:01:18]} Rfd8 {[%emt 0:00:03] ...Nc2 would now be deadly.} 20. Bd2 {[%emt 0:00:33]} Qb6 {[%emt 0:00:22]} 21. Rc1 {[%emt 0:00:27]} Rxc1 {[%emt 0:00:07]} 22. Bxc1 {[%emt 0:00:02] A strong pair of Bishops.} Nxb5 $1 {[%emt 0:00:09]} 23. Qe1 {[%emt 0:00:36]} Nd4 {[%emt 0:00:16]} 24. b4 {[%emt 0:00:53]} (24. Qxe5 $5 Re8 (24... Qxb3 25. Bxh6 Qc3 26. Kh1 $18) 25. a5 $14) 24... e4 {[%emt 0:00:37]} 25. Be3 {[%emt 0:00:16]} (25. Bxe4 $2 {perishes.} Re8 (25... Nxe4 26. Qxe4 Qxb4 27. Kh1 $15) 26. a5 Qb5 $19) 25... Qa6 {[%emt 0:00:02]} 26. Bxd4 {[%emt 0:00:46]} Rxd4 {[%emt 0:00:02]} 27. Qc3 {[%emt 0:00:44]} Qc4 {[%emt 0:00:05]} 28. Qxc4 {[%emt 0:01:05]} Rxc4 $11 {[%emt 0:00:01][%mdl 4096] Endgame. KRB-KRN} 29. Rb1 {[%emt 0:00:01]} Nd5 {[%emt 0:00:01]} 30. Rd1 {[%emt 0:00:17]} Nxb4 {[%emt 0:01:05]} 31. Rd8+ {[%emt 0:00:02]} Kh7 {[%emt 0:00:01]} 32. Rd7 {[%emt 0:00:01][%csl LRa7,LRf7]} f5 {[%emt 0:00:16]} 33. Rxa7 {[%emt 0:00:31]} Nd3 {[%emt 0:00:06]} 34. a5 {[%emt 0:00:25]} Rc2 {[%emt 0:00:15]} 35. g4 {[%emt 0:00:33][%cal Bg3g4,Bg4f5][%mdl 32]} Rc1+ {[%emt 0:00:57]} 36. Kh2 {[%emt 0:00:29]} Kg6 {[%emt 0:02:15]} 37. gxf5+ {[%emt 0:00:19]} Kf6 (37... Kxf5 $14 38. Rxg7 Ra1) 38. Bxe4 $16 {[%emt 0:00:11]} Nxf2 {[%emt 0:00:10]} 39. Bg2 {[%emt 0:00:07] White is more active.} (39. Ra6+ $1 $16 Ke5 40. Re6+ Kf4 41. Bg2 Kxf5 42. Re3) 39... Rc2 {[%emt 0:00:00] [#]} ({Black should try} 39... Nd1 $14) 40. Rd7 $1 $18 {[%emt 0:00:48] aiming for a6.} Ra2 {[%emt 0:00:00][%cal Of2e4]} 41. Kg3 {[%emt 0:00:07][%cal Od7f7] Rf7+! is the strong threat.} Kxf5 {[%emt 0:00:00]} 42. Rf7+ {[%emt 0:00:10]} ({Worse is} 42. Rxg7 Ne4+ 43. Bxe4+ Kxe4 $11) 42... Ke6 {[%emt 0:00:00]} 43. Rxf2 {[%emt 0:00:03]} Rxa5 {[%emt 0:00:00] KRB-KR} 44. Bf3 {[%emt 0:00:15]} Ra3 {[%emt 0:00:00]} 45. Kg4 {[%emt 0:00:07]} Ra4+ $2 {[%emt 0:00:16]} (45... g6 46. Bb7 Ra4+ 47. Kg3 Ke7) 46. Kg3 {[%emt 0:00:24]} (46. Kh5 $142) 46... Ra3 {[%emt 0:00:02]} 47. Rb2 {[%emt 0:00:02]} Ra7 {[%emt 0:00:15]} (47... g6 $142 48. Kg2 Ra6) 48. Rb6+ {[%emt 0:00:02]} Ke7 {[%emt 0:00:04]} 49. Bd5 {[%emt 0:00:04]} Rd7 {[%emt 0:00:06]} 50. Be4 {[%emt 0:00:19]} Ra7 {[%emt 0:00:04]} (50... Rd6 {is a better defense.} 51. Rb1 Re6) 51. Kf4 {[%emt 0:00:21] Threatens to win with Ke5.} Ra1 $2 {[%emt 0:00:01]} (51... Ra3 {might work better.} 52. Bf5 Ra1) 52. Ke5 {[%emt 0:00:09]} Ra5+ $2 {[%emt 0:00:09]} (52... h5 $18 53. Re6+ Kd8) 53. Bd5 {[%emt 0:00:02]} Ra7 {[%emt 0:00:01]} 54. Rg6 {[%emt 0:00:22]} Kf8 {[%emt 0:00:06]} 55. Rg3 {[%emt 0:00:02]} Ra6 {[%emt 0:00:08]} 56. Rf3+ {[%emt 0:00:05]} Ke8 {[%emt 0:00:08]} 57. Rb3 {[%emt 0:00:19] Threatening mate with Rb8+.} Ra7 {[%emt 0:00:08]} 58. Rb8+ {[%emt 0:00:04]} Ke7 {[%emt 0:00:12]} 59. Rg8 {[%emt 0:00:02] White mates.} Ra3 {[%emt 0:00:00]} 60. Rxg7+ {[%emt 0:00:03]} Kf8 {[%emt 0:00:00]} 61. Rc7 {[%emt 0:00:28]} Rxh3 {[%emt 0:00:08]} 62. Kf6 {[%emt 0:00:03][%cal Rc7c8]} Re3 {[%emt 0:00:04]} 63. Be6 {[%emt 0:00:06][%cal Rc7c8]} Rf3+ {[%emt 0:00:02] [#]} 64. Bf5 $1 {[%emt 0:00:02][%cal Rc7c8]} Re3 {[%emt 0:00:02]} 65. Rh7 {[%emt 0:00:06][%cal Rh7h8]} Kg8 {[%emt 0:00:04]} 66. Rxh6 {[%emt 0:00:05]} Rf3 {[%emt 0:00:02]} 67. Rh4 {[%emt 0:00:04]} Rf1 {[%emt 0:00:02]} 68. Rc4 {[%emt 0:00:04] Weighted Error Value: White=0.16 (very precise) /Black=0.52.  Mistake:       	White=2     	Black=8      Inaccurate:     	White=2     	Black=1      OK:         	White=21    	Black=13     Best:        	White=4     	Black=3      Strong:       	White=2     	Black=1} 1-0

[Event "Polish University-ch Teams 2024"]
[Site "Lublin"]
[Date "2024.02.24"]
[Round "5.4"]
[White "Karpus, Michal"]
[Black "Chylewski, Patryk"]
[Result "1-0"]
[ECO "C25"]
[WhiteElo "2243"]
[BlackElo "2285"]
[Annotator "TA"]
[PlyCount "97"]
[EventDate "2024.02.22"]
[EventType "team-tourn"]
[EventCountry "POL"]
[SourceTitle "playchess.com"]
[Source "ChessBase"]
[SourceQuality "1"]
[TimeControl "900+5"]

{[%evp 9,97,-75,-86,-75,-88,-85,-87,-89,-83,-118,-139,-144,-149,-197,0,0,60,60,157,144,154,133,140,134,263,246,376,376,408,395,411,307,393,387,648,680,685,428,428,422,462,461,449,454,457,458,454,439,477,468,489,497,538,524,542,552,574,552,577,572,578,535,569,574,613,590,654,619,647,632,647,522,867,867,796,781,940,756,864,753,893,864,827,794,1854,1779,1162,907,1654,1654]} 1. e4 {[%emt 0:00:01]} e5 {[%emt 0:00:05]} 2. Bc4 {[%emt 0:00:06]} Nc6 {[%emt 0:00:47]} 3. Nc3 {[%emt 0:00:02]} Bc5 {[%emt 0:01:04]} 4. d3 {[%emt 0:00:08]} d6 {[%emt 0:00:25]} 5. f4 {[%emt 0:00:30] [#]} Bxg1 $1 {[%emt 0:01:51]} 6. Rxg1 {[%emt 0:00:06]} Qh4+ {[%emt 0:00:09]} 7. Kf1 {[%emt 0:00:12]} Bg4 {[%emt 0:00:29]} (7... Qxh2 $6 8. Nd5 Kd8 9. f5 $11) (7... exf4 8. Qe1 Qxe1+ (8... Qxh2 9. Nd5 $11) 9. Kxe1 $11) 8. Qd2 {[%emt 0:00:40] Black is better.} Qxh2 {[%emt 0:00:15]} 9. Nd5 {[%emt 0:00:42]} O-O-O {[%emt 0:01:23]} 10. Qf2 {[%emt 0:02:45]} Nd4 {[%emt 0:01:05]} 11. Ne3 {[%emt 0:00:43]} (11. fxe5 $17 dxe5 12. Bg5) 11... h5 $2 {[%emt 0:03:26]} (11... Qxf4 12. c3 $16) (11... Nf6 $19 {aiming for ...d5.} 12. fxe5 dxe5) 12. c3 $11 {[%emt 0:00:54]} Nc6 {[%emt 0:01:17]} (12... Ne6 $11) 13. f5 $14 {[%emt 0:02:32]} Nh6 {[%emt 0:00:15] White stays focused until the end.} (13... Rd7 $14) 14. Ke1 $16 {[%emt 0:00:54]} Qf4 {[%emt 0:01:05]} 15. Nxg4 {[%emt 0:01:10]} Qxg4 {[%emt 0:00:21]} 16. Rh1 {[%emt 0:00:11]} g5 {[%emt 0:00:34] [#] Against Rh4} (16... d5 $16) 17. Bb3 $1 $18 {[%emt 0:00:07]} Nxf5 {[%emt 0:01:43]} (17... h4 {was worth a try.}) 18. exf5 {[%emt 0:00:35][%cal Ob3d1]} (18. Qxf5+ Qxf5 19. exf5 f6 20. Be6+ Kb8 $18) 18... Ne7 {[%emt 0:00:12]} 19. Bxf7 {[%emt 0:02:05]} ({Not} 19. Qxa7 c5 $16 (19... Qxg2 $2 20. Rg1 $18)) 19... Kb8 {[%emt 0:00:07]} 20. Be3 {[%emt 0:00:08][%cal Bc1e3,Be3a7,Ba7f2][%mdl 32]} Rdf8 {[%emt 0:00:04]} 21. Be6 {[%emt 0:00:38]} (21. Bxa7+ Ka8 22. Be6 Rh6 $16) 21... Nxf5 $2 {[%emt 0:00:03]} (21... h4 22. Qe2 (22. Bxa7+ Ka8 $18) 22... Qxe2+ 23. Kxe2 Nxf5 24. Bxf5 (24. Bxg5 Ng3+ 25. Ke3 Nxh1 $18) 24... Rxf5) 22. Rf1 {[%emt 0:00:07] White is clearly winning.} Qh4 {[%emt 0:00:07]} 23. Bxf5 {[%emt 0:00:08]} Rxf5 {[%emt 0:00:02]} 24. Bxa7+ {[%emt 0:00:13]} Ka8 {[%emt 0:00:02]} 25. Qxh4 {[%emt 0:00:02]} Rxf1+ {[%emt 0:00:02]} 26. Kxf1 {[%emt 0:00:01][%cal Be1f1,Bf1g1,Bg1g2,Bg2f3,Bf3e2][%mdl 32]} gxh4 {[%emt 0:00:01][%mdl 4096] Endgame. KRB-KR} 27. Bf2 {[%emt 0:00:02]} Rf8 {[%emt 0:00:07]} 28. Kg1 {[%emt 0:00:02]} h3 {[%emt 0:00:02]} 29. gxh3 {[%emt 0:00:07]} Rf3 {[%emt 0:00:01]} 30. Rd1 {[%emt 0:00:01]} Kb8 {[%emt 0:00:12]} 31. Kg2 {[%emt 0:00:01]} Rf7 {[%emt 0:00:04]} 32. Rf1 {[%emt 0:00:07][%cal Of2a7] Hoping for Ba7+!} Kc8 {[%emt 0:00:01]} 33. Be3 {[%emt 0:00:06]} Rg7+ {[%emt 0:00:03]} 34. Kf3 {[%emt 0:00:02]} Kd7 {[%emt 0:00:12]} 35. Rg1 {[%emt 0:00:02]} Rf7+ {[%emt 0:00:01]} 36. Ke2 {[%emt 0:00:01]} Ke6 {[%emt 0:00:04]} 37. Rg6+ {[%emt 0:00:04]} Kd5 {[%emt 0:00:04]} 38. Rg5 {[%emt 0:00:06]} Rh7 {[%emt 0:00:02]} 39. b4 {[%emt 0:00:08]} b5 {[%emt 0:00:05]} 40. d4 {[%emt 0:00:14]} Ke4 {[%emt 0:00:22]} 41. dxe5 {[%emt 0:00:03]} dxe5 {[%emt 0:00:02]} 42. Bf2 {[%emt 0:00:46]} Kf4 {[%emt 0:00:02]} 43. Rg6 {[%emt 0:00:04]} Rd7 {[%emt 0:00:10]} 44. Rh6 {[%emt 0:00:09]} Kg5 {[%emt 0:00:01]} 45. Re6 {[%emt 0:00:11]} Kf5 {[%emt 0:00:01]} 46. Rc6 {[%emt 0:00:01]} Ke4 {[%emt 0:00:10]} 47. c4 {[%emt 0:00:13]} bxc4 {[%emt 0:00:11]} 48. Rxc4+ {[%emt 0:00:02]} Kf5 {[%emt 0:00:01]} 49. a4 {[%emt 0:00:02] Weighted Error Value: White=0.22 (precise) /Black=0.55.  Missed win:     	---       	Black=1      Mistake:       	White=1     	Black=5      Inaccurate:     	White=1     	---        OK:         	White=15    	Black=10     Best:        	White=5     	Black=2      Strong:       	White=1     	---} 1-0